bitfinex/quotes_BTCUSD_20220307
["timestamp","ask_amount","ask_price","bid_price","bid_amount"]
[1646668375262,0.35237956,39130.0,39128.0,0.127776]
[1646668375461,0.28130768,39129.0,39128.0,0.127776]
[1646668375661,0.33130768,39129.0,39128.0,0.127776]
[1646668376061,0.28130768,39129.0,39128.0,0.127776]
[1646668376902,0.08130768,39129.0,39128.0,0.127776]
[1646668377110,0.46078006,39129.0,39128.0,0.127776]
[1646668377310,0.26078006,39129.0,39128.0,0.127776]
[1646668377505,0.45822522,39129.0,39128.0,0.127776]
[1646668378007,0.45822522,39129.0,39127.0,0.0003752]
[1646668378206,0.19520068,39129.0,39127.0,0.0003752]
[1646668378406,0.25909168,39129.0,39126.0,0.36155204]
[1646668378607,0.191668,39128.0,39127.0,0.063887]
[1646668378807,0.191668,39128.0,39127.0,0.51484965]
[1646668379209,0.177784,39129.0,39127.0,0.35329761]
[1646668379409,0.177784,39129.0,39128.0,0.08941061]
[1646668379713,0.177784,39129.0,39128.0,0.28941061]
[1646668380306,0.127784,39129.0,39128.0,0.28941061]
[1646668380756,0.127784,39129.0,39128.0,0.34061061]
[1646668381157,0.127784,39129.0,39128.0,0.70168447]
[1646668381357,0.127756,39131.0,39128.0,0.70168447]
[1646668381561,0.127756,39131.0,39129.0,0.08941061]
[1646668381760,0.127756,39131.0,39130.0,0.1512]
[1646668381960,0.1799398,39131.0,39130.0,0.59936319]
[1646668382158,0.063876,39132.0,39130.0,0.59936319]
[1646668382364,0.063876,39132.0,39131.0,0.18941061]
[1646668382557,0.063876,39132.0,39131.0,0.34061061]
[1646668382759,0.063876,39132.0,39131.0,0.55130214]
[1646668382760,0.23067895,39132.0,39131.0,0.55130214]
[1646668382960,0.23067895,39132.0,39130.0,0.05]
[1646668382961,1.2,39131.0,39129.0,0.277754]
[1646668383159,1.52034434,39131.0,39130.0,0.1]
[1646668383356,1.52034434,39131.0,39130.0,0.00036194]
[1646668383558,1.45,39130.0,39129.0,0.14280909]
[1646668383757,1.07691684,39130.0,39129.0,0.063896]
[1646668383957,1.12691684,39130.0,39129.0,0.063896]
[1646668384812,1.324362,39130.0,39129.0,0.063896]
[1646668385213,1.73445278,39130.0,39129.0,0.063896]
[1646668385617,1.374362,39130.0,39129.0,0.063896]
[1646668385815,0.05,39129.0,39128.0,0.00025981]
[1646668386413,0.19520844,39129.0,39128.0,0.00025981]
[1646668386816,0.191705,39128.0,39125.0,0.127791]
[1646668387019,0.19744516,39126.0,39122.0,0.1278]
[1646668387322,0.21205346,39124.0,39122.0,0.1278]
[1646668387521,0.29336114,39124.0,39122.0,0.1278]
[1646668387721,0.29336114,39124.0,39120.0,0.004]
[1646668387722,0.55753594,39123.0,39120.0,0.004]
[1646668387918,0.46356575,39123.0,39121.0,0.06391]
[1646668388162,0.54487343,39123.0,39121.0,0.06391]
[1646668388363,0.34266684,39123.0,39121.0,0.06391]
[1646668388561,0.34266684,39123.0,39121.0,0.16391]
[1646668388562,0.40658084,39123.0,39121.0,0.16391]
[1646668388958,0.20913568,39123.0,39121.0,0.16391]
[1646668389159,0.127828,39123.0,39121.0,0.16391]
[1646668389660,0.063914,39123.0,39121.0,0.16391]
[1646668389862,0.05,39125.0,39122.0,0.1]
[1646668390067,0.05,39125.0,39122.0,0.1512]
[1646668390260,0.05,39125.0,39123.0,0.227762]
[1646668390460,0.05,39125.0,39124.0,0.1512]
[1646668390860,0.05,39125.0,39124.0,0.2512]
[1646668392911,0.127762,39133.0,39124.0,1.60454736]
[1646668393113,0.0003089,39137.0,39127.0,0.005]
[1646668393309,0.27825284,39136.0,39133.0,0.36197718]
[1646668393510,0.27825284,39136.0,39134.0,0.36197718]
[1646668393908,0.127748,39138.0,39134.0,0.36197718]
[1646668394113,0.127748,39138.0,39135.0,0.36197718]
[1646668394312,0.00030898,39137.0,39136.0,0.36197718]
[1646668394511,0.09515698,39138.0,39136.0,0.36197718]
[1646668394915,0.27825284,39137.0,39135.0,0.46197718]
[1646668395113,0.27825284,39137.0,39135.0,0.1]
[1646668395317,0.19694516,39136.0,39135.0,0.1]
[1646668395562,0.08130768,39137.0,39135.0,0.1]
[1646668395764,0.19694516,39136.0,39135.0,0.1]
[1646668396459,0.38297157,39138.0,39135.0,0.1]
[1646668396660,0.063873,39137.0,39135.0,0.1]
[1646668397060,0.058873,39137.0,39135.0,0.46197718]
[1646668397260,0.058873,39137.0,39136.0,0.41317718]
[1646668397463,0.0641812,39139.0,39137.0,0.01361497]
[1646668397663,0.063873,39139.0,39138.0,0.0512]
[1646668397866,0.0641812,39139.0,39138.0,0.0512]
[1646668398163,0.34243404,39139.0,39138.0,0.36143391]
[1646668398767,0.34243404,39139.0,39137.0,0.37200728]
[1646668398768,0.34212584,39139.0,39137.0,0.38771688]
[1646668399064,0.34212584,39139.0,39137.0,0.27200728]
[1646668399305,0.34212584,39139.0,39137.0,0.07748297]
[1646668399803,0.34075305,39139.0,39137.0,0.07748297]
[1646668401405,0.34075305,39139.0,39138.0,0.31023391]
[1646668401805,0.34075305,39139.0,39137.0,0.07748297]
[1646668402208,0.34075305,39139.0,39138.0,0.31022412]
[1646668402417,0.34075305,39139.0,39137.0,0.01361497]
[1646668402418,1.6,39138.0,39137.0,0.01361497]
[1646668404067,0.05,39138.0,39137.0,0.01361497]
[1646668404268,0.05,39138.0,39137.0,0.32389167]
[1646668404467,0.05,39138.0,39137.0,0.01361497]
[1646668405172,0.05,39138.0,39134.0,0.3102767]
[1646668405173,1.55,39137.0,39134.0,0.3102767]
[1646668405369,1.66946443,39137.0,39133.0,0.3102767]
[1646668405674,0.1961099,39134.0,39133.0,0.3102767]
[1646668405867,0.38742201,39134.0,39133.0,0.3102767]
[1646668406468,0.58436717,39134.0,39133.0,0.3102767]
[1646668406809,1.0,39132.0,39123.0,0.41820064]
[1646668407009,1.0,39132.0,39126.0,0.03637146]
[1646668407209,0.19694516,39128.0,39126.0,0.03637146]
[1646668407409,0.07993489,39127.0,39124.0,0.2]
[1646668407610,0.127791,39126.0,39125.0,0.10024878]
[1646668407811,0.26084216,39128.0,39125.0,0.10024878]
[1646668408007,0.26084216,39128.0,39126.0,0.13635478]
[1646668408214,0.26084216,39128.0,39127.0,0.03635478]
[1646668408409,0.31309936,39128.0,39127.0,0.03635478]
[1646668409010,0.66866084,39128.0,39127.0,0.03635478]
[1646668409314,0.0522572,39125.0,39123.0,0.19461249]
[1646668409513,0.0522572,39125.0,39122.0,0.19861249]
[1646668409514,0.05471627,39123.0,39122.0,0.19861249]
[1646668409710,0.05471627,39123.0,39122.0,0.004]
[1646668409711,0.35391863,39123.0,39122.0,0.004]
[1646668409911,0.29920236,39123.0,39122.0,0.004]
[1646668410110,0.51623285,39123.0,39122.0,0.004]
[1646668410410,0.46623285,39123.0,39122.0,0.004]
[1646668410677,0.063913,39121.0,39115.0,0.41320064]
[1646668410881,0.063913,39121.0,39115.0,0.005]
[1646668411275,0.24920236,39120.0,39115.0,0.005]
[1646668411575,0.29920236,39120.0,39115.0,0.41820064]
[1646668411776,0.29920236,39120.0,39115.0,0.61820064]
[1646668412178,0.24920236,39120.0,39118.0,0.005]
[1646668412383,0.063913,39121.0,39119.0,0.07392338]
[1646668412577,0.025313,39121.0,39119.0,0.07392338]
[1646668412778,0.025313,39121.0,39119.0,0.17392338]
[1646668412976,0.025313,39121.0,39120.0,0.1]
[1646668413382,0.27451536,39121.0,39119.0,0.01002838]
[1646668413978,0.127823,39120.0,39118.0,0.00037479]
[1646668414180,0.127823,39120.0,39118.0,0.06428179]
[1646668414421,0.127823,39120.0,39118.0,0.07609412]
[1646668414620,0.127823,39120.0,39118.0,0.063907]
[1646668415020,0.32476816,39120.0,39118.0,0.063907]
[1646668415421,0.37476816,39120.0,39117.0,0.0003748]
[1646668415622,0.0522572,39119.0,39116.0,0.005]
[1646668415821,0.19694516,39117.0,39116.0,0.005]
[1646668416621,0.063911,39118.0,39116.0,0.005]
[1646668416824,0.19694516,39117.0,39116.0,0.005]
[1646668417221,0.0522572,39119.0,39116.0,0.005]
[1646668417423,0.55,39120.0,39116.0,0.105]
[1646668417822,0.5,39120.0,39119.0,0.068893]
[1646668418056,0.55,39120.0,39119.0,0.168893]
[1646668418555,0.55,39120.0,39119.0,0.105]
[1646668418952,0.55,39120.0,39119.0,0.005]
[1646668419152,0.5,39120.0,39119.0,0.005]
[1646668419351,0.74920236,39120.0,39119.0,0.005]
[1646668419853,0.49974121,39120.0,39118.0,0.10025108]
[1646668420452,0.49974121,39120.0,39118.0,0.0999]
[1646668421254,0.56364921,39120.0,39118.0,0.0999]
[1646668421907,0.19694516,39119.0,39117.0,0.00035108]
[1646668422106,0.14189165,39119.0,39117.0,0.00035108]
[1646668422407,0.14189165,39118.0,39117.0,0.00035108]
[1646668422805,0.14189165,39118.0,39116.0,0.005]
[1646668423005,0.14189165,39118.0,39116.0,0.06926325]
[1646668423205,0.063912,39117.0,39116.0,0.06926325]
[1646668423404,0.063912,39117.0,39116.0,0.06426325]
[1646668423804,0.25618723,39117.0,39116.0,0.06426325]
[1646668424006,0.063912,39117.0,39116.0,0.068911]
[1646668424204,0.063912,39117.0,39116.0,0.063911]
[1646668424603,0.063912,39117.0,39115.0,0.00035225]
[1646668424805,0.14189165,39116.0,39115.0,0.00035225]
[1646668425208,0.14189165,39116.0,39114.0,0.1]
[1646668425406,0.14189165,39116.0,39115.0,0.005]
[1646668426459,0.14189165,39116.0,39113.0,0.191734]
[1646668426659,0.33891895,39116.0,39113.0,0.18708594]
[1646668426957,0.14189165,39116.0,39113.0,0.18708594]
[1646668428161,0.14189165,39116.0,39114.0,0.01115573]
[1646668430013,0.17075845,39115.0,39114.0,0.01115573]
[1646668430616,0.52108561,39115.0,39113.0,0.05926694]
[1646668430818,0.88746681,39114.0,39112.0,0.0002821]
[1646668431015,0.51454635,39113.0,39112.0,0.0002821]
[1646668431215,0.21421919,39113.0,39109.0,0.21116761]
[1646668431420,0.21421919,39113.0,39111.0,0.00037484]
[1646668431816,0.14189165,39112.0,39111.0,0.00037484]
[1646668432014,0.19189165,39112.0,39111.0,0.00037484]
[1646668432414,0.19189165,39112.0,39109.0,0.27509661]
[1646668432614,0.05,39111.0,39110.0,0.00037485]
[1646668433459,0.11392721,39111.0,39110.0,0.00037485]
[1646668433658,0.05,39111.0,39109.0,0.27509661]
[1646668433859,0.05,39111.0,39109.0,0.27547147]
[1646668434858,0.05,39111.0,39109.0,0.27509661]
[1646668439417,0.05,39111.0,39110.0,0.05]
[1646668440216,0.05,39111.0,39109.0,0.27509661]
[1646668441064,0.35032716,39110.0,39109.0,0.27509661]
[1646668441262,0.05,39111.0,39109.0,0.27509661]
[1646668441474,0.79948849,39110.0,39109.0,0.16116761]
[1646668441668,2.3327,39109.0,39108.0,2.28e-06]
[1646668441869,3.42136681,39109.0,39108.0,2.28e-06]
[1646668442064,0.34189165,39105.0,39104.0,2.28e-06]
[1646668442261,2.16516681,39105.0,39104.0,2.28e-06]
[1646668442864,0.83213965,39105.0,39104.0,2.28e-06]
[1646668443068,0.35585665,39105.0,39104.0,2.28e-06]
[1646668443261,0.35585665,39105.0,39092.0,0.0862305]
[1646668443262,0.25585665,39105.0,39092.0,0.0862305]
[1646668443466,0.14189165,39093.0,39092.0,0.0862305]
[1646668443861,0.14189165,39093.0,39092.0,0.0912305]
[1646668444062,0.14189165,39093.0,39092.0,0.1551815]
[1646668444348,0.14189165,39093.0,39092.0,0.2830845]
[1646668444747,0.14189165,39096.0,39092.0,0.2780845]
[1646668445349,0.16770241,39102.0,39092.0,0.2780845]
[1646668445552,0.21770241,39102.0,39092.0,0.2780845]
[1646668445949,0.14189165,39094.0,39092.0,0.2780845]
[1646668446350,0.14189165,39094.0,39092.0,0.2141335]
[1646668447550,0.2977,39102.0,39092.0,0.2141335]
[1646668447750,0.14189165,39096.0,39092.0,0.2141335]
[1646668447950,0.14189165,39096.0,39093.0,0.005]
[1646668448168,0.14189165,39096.0,39093.0,0.105]
[1646668448669,0.2977,39102.0,39093.0,0.105]
[1646668448869,0.05,39102.0,39094.0,0.0862247]
[1646668449069,0.21630915,39103.0,39094.0,0.0862247]
[1646668449070,0.26630915,39103.0,39094.0,0.0862247]
[1646668449273,0.26630915,39103.0,39094.0,0.1362247]
[1646668449468,0.14189165,39096.0,39094.0,0.1362247]
[1646668449676,0.14189165,39096.0,39095.0,0.063947]
[1646668451809,0.49974121,39100.0,39094.0,0.26946215]
[1646668451810,0.66411017,39100.0,39094.0,0.26946215]
[1646668452010,0.66411017,39100.0,39094.0,0.26446215]
[1646668452011,0.14189165,39096.0,39094.0,0.26446215]
[1646668452413,0.14189165,39096.0,39094.0,0.13657315]
[1646668452811,0.14189165,39096.0,39094.0,0.1362247]
[1646668453212,0.14189165,39096.0,39094.0,0.0862247]
[1646668453416,0.395248,39095.0,39094.0,0.0862247]
[1646668454012,0.19189165,39096.0,39091.0,0.23880779]
[1646668454213,0.063971,39095.0,39093.0,0.00033904]
[1646668454516,0.30775836,39094.0,39093.0,0.00033904]
[1646668454716,0.75685317,39082.0,39081.0,0.62814716]
[1646668454915,0.68116786,39082.0,39081.0,0.2141807]
[1646668455115,0.68116786,39082.0,39081.0,0.127927]
[1646668455960,0.68116786,39082.0,39080.0,0.282931]
[1646668456359,0.68116786,39082.0,39080.0,0.182931]
[1646668456760,0.68116786,39082.0,39080.0,0.05]
[1646668457268,0.847185,39082.0,39080.0,0.05]
[1646668459058,0.68116786,39082.0,39080.0,0.05]
[1646668459508,0.68116786,39082.0,39081.0,0.005]
[1646668460108,0.68116786,39082.0,39080.0,0.05]
[1646668460309,0.68116786,39082.0,39080.0,0.05037482]
[1646668460508,0.68116786,39082.0,39081.0,0.005]
[1646668460708,0.68116786,39082.0,39080.0,0.05037482]
[1646668461308,0.68116786,39082.0,39080.0,0.05]
[1646668461512,0.68116786,39082.0,39080.0,0.055]
[1646668462211,0.68116786,39082.0,39081.0,0.005]
[1646668462419,0.68116786,39082.0,39081.0,0.068966]
[1646668463086,0.61305108,39082.0,39081.0,0.068966]
[1646668463278,0.61305108,39082.0,39081.0,0.51479322]
[1646668463679,0.61305108,39082.0,39081.0,0.74036322]
[1646668463883,0.61305108,39082.0,39081.0,0.79156322]
[1646668464079,0.61305108,39082.0,39081.0,0.9862493]
[1646668464278,0.22938208,39082.0,39081.0,0.9862493]
[1646668464479,0.06562678,39082.0,39081.0,0.79156322]
[1646668464680,0.2308,39101.0,39082.0,1.57567]
[1646668464882,0.2308,39101.0,39095.0,0.005]
[1646668465083,0.2308,39101.0,39096.0,0.0512]
[1646668465280,0.14189165,39105.0,39096.0,0.0512]
[1646668465481,0.076712,39106.0,39097.0,0.005]
[1646668465482,0.16934826,39101.0,39097.0,0.005]
[1646668465680,0.16934826,39101.0,39098.0,0.0512]
[1646668465982,0.23086,39107.0,39099.0,0.068938]
[1646668466180,0.45097776,39107.0,39099.0,0.120138]
[1646668466383,0.14189165,39104.0,39099.0,0.120138]
[1646668466581,0.45097776,39107.0,39099.0,0.120138]
[1646668466817,0.14189165,39104.0,39099.0,0.120138]
[1646668467017,0.3547035,39104.0,39099.0,0.120138]
[1646668467419,0.17773945,39101.0,39099.0,0.120138]
[1646668467628,0.17773945,39101.0,39094.0,0.0512]
[1646668468623,0.18930481,39095.0,39094.0,0.0512]
[1646668469121,0.40593503,39095.0,39091.0,0.00035292]
[1646668469721,0.40593503,39095.0,39089.0,0.005]
[1646668469920,0.40593503,39095.0,39091.0,0.0003522]
[1646668470873,0.14189165,39094.0,39089.0,0.005]
[1646668471174,0.063964,39093.0,39091.0,0.0003522]
[1646668472171,0.063964,39093.0,39089.0,0.068959]
[1646668472474,0.18930481,39095.0,39091.0,0.127899]
[1646668472872,0.18930481,39095.0,39091.0,0.132899]
[1646668473072,0.14189165,39094.0,39091.0,0.132899]
[1646668473471,0.14189165,39094.0,39091.0,0.127899]
[1646668473672,0.20584665,39094.0,39091.0,0.127899]
[1646668474614,0.20584665,39094.0,39090.0,0.1279]
[1646668475013,0.063955,39094.0,39090.0,0.1279]
[1646668475414,0.18930481,39095.0,39090.0,0.1279]
[1646668475615,0.18930481,39095.0,39091.0,0.005]
[1646668475816,0.37989165,39099.0,39092.0,0.063949]
[1646668476019,0.14189165,39099.0,39092.0,0.063949]
[1646668476216,0.05,39098.0,39092.0,0.063949]
[1646668476417,0.14189165,39099.0,39092.0,0.063949]
[1646668476816,0.14189165,39099.0,39093.0,0.005]
[1646668477018,0.14189165,39099.0,39094.0,0.063946]
[1646668477617,0.16430032,39095.0,39094.0,0.063946]
[1646668478265,0.14189165,39099.0,39091.0,0.10037444]
[1646668478461,0.14189165,39099.0,39091.0,0.20037444]
[1646668478862,0.06557811,39096.0,39091.0,0.20037444]
[1646668479068,0.14189165,39092.0,39091.0,0.00037444]
[1646668479267,0.14189165,39092.0,39086.0,0.3366]
[1646668479268,0.68593965,39092.0,39086.0,0.3366]
[1646668479468,0.14189165,39088.0,39086.0,0.2366]
[1646668479866,0.19189165,39088.0,39086.0,0.2366]
[1646668480068,0.39645318,39088.0,39086.0,0.2366]
[1646668480268,0.395256,39087.0,39086.0,0.2366]
[1646668480471,0.05,39087.0,39082.0,0.19474095]
[1646668480668,0.113979,39087.0,39085.0,0.00037455]
[1646668481066,0.14189165,39086.0,39085.0,0.00037455]
[1646668481468,0.20587005,39086.0,39082.0,0.1901155]
[1646668481669,0.222429,39084.0,39082.0,0.1901155]
[1646668481912,0.14189165,39083.0,39082.0,0.1901155]
[1646668482716,0.56522979,39083.0,39082.0,0.1901155]
[1646668482916,1.55,39082.0,39080.0,0.05]
[1646668483118,1.55,39082.0,39074.0,0.41320064]
[1646668483119,0.34330814,39081.0,39074.0,0.41320064]
[1646668483317,0.34330814,39081.0,39073.0,0.42598064]
[1646668483318,0.063991,39079.0,39073.0,0.42598064]
[1646668483517,0.17950148,39078.0,39073.0,0.01278]
[1646668483714,0.3475769,39077.0,39073.0,0.01278]
[1646668483914,0.14189165,39075.0,39071.0,0.41320064]
[1646668484516,0.48519979,39075.0,39070.0,0.2366]
[1646668484715,0.063995,39074.0,39070.0,0.2366]
[1646668485563,0.063995,39074.0,39070.0,0.23697466]
[1646668485564,0.20997828,39071.0,39070.0,0.23697466]
[1646668485768,0.063995,39074.0,39070.0,0.23697466]
[1646668485964,0.20427906,39071.0,39070.0,0.23697466]
[1646668486267,0.20427906,39071.0,39070.0,0.23197466]
[1646668486463,0.20427906,39071.0,39070.0,0.2316]
[1646668487465,0.40672931,39071.0,39070.0,0.2316]
[1646668487764,0.20427906,39071.0,39070.0,0.2316]
[1646668488368,0.20427906,39071.0,39069.0,0.00037467]
[1646668488765,0.42501229,39071.0,39069.0,0.00037467]
[1646668489067,0.42501229,39071.0,39068.0,0.00037467]
[1646668489915,0.48901529,39071.0,39068.0,0.00037467]
[1646668490117,0.20427906,39071.0,39064.0,0.03868007]
[1646668490315,0.20427906,39071.0,39068.0,0.00036438]
[1646668491115,0.40449129,39071.0,39068.0,0.00036438]
[1646668491315,0.40449129,39071.0,39067.0,0.063995]
[1646668491514,0.40449129,39071.0,39068.0,0.00036438]
[1646668492114,0.54638294,39071.0,39068.0,0.06436138]
[1646668492317,0.34617071,39071.0,39068.0,0.06436138]
[1646668492520,0.20427906,39071.0,39068.0,0.063994]
[1646668492719,0.20427906,39071.0,39068.0,0.06435838]
[1646668492922,0.14189165,39070.0,39068.0,0.06435838]
[1646668493383,0.20589365,39070.0,39068.0,0.00036438]
[1646668493588,0.70563486,39070.0,39068.0,0.00036438]
[1646668493784,0.70663486,39070.0,39063.0,0.003]
[1646668493982,0.34227786,39069.0,39067.0,0.0003514]
[1646668494184,0.14189165,39068.0,39067.0,0.0003514]
[1646668494387,0.48416951,39068.0,39067.0,0.0003514]
[1646668494984,0.34227786,39068.0,39057.0,0.2616]
[1646668495183,0.20590665,39067.0,39066.0,0.00035141]
[1646668495383,0.20590665,39067.0,39057.0,0.2616]
[1646668495384,0.19511559,39061.0,39057.0,0.025]
[1646668495584,0.12803,39064.0,39057.0,0.025]
[1646668495785,0.12803,39064.0,39054.0,0.17802]
[1646668495786,0.18840008,39062.0,39054.0,0.17802]
[1646668496087,0.18840008,39062.0,39057.0,0.064013]
[1646668496285,0.064015,39061.0,39054.0,0.12802]
[1646668497114,0.063015,39061.0,39054.0,0.12802]
[1646668497517,0.063015,39061.0,39056.0,0.00025902]
[1646668497518,0.19617158,39059.0,39056.0,0.00025902]
[1646668498515,0.19617158,39059.0,39054.0,0.12802]
[1646668498720,0.19617158,39059.0,39056.0,0.00025902]
[1646668498916,0.24235958,39061.0,39057.0,0.064013]
[1646668499216,0.24235958,39061.0,39056.0,0.00025902]
[1646668499417,0.063015,39061.0,39056.0,0.00025902]
[1646668499815,0.063015,39061.0,39054.0,0.12802]
[1646668500015,0.063015,39061.0,39057.0,0.00035386]
[1646668500568,0.14189165,39058.0,39057.0,0.00035386]
[1646668500964,0.064021,39057.0,39052.0,0.08631757]
[1646668501167,0.064021,39057.0,39056.0,0.00035541]
[1646668502267,0.064021,39057.0,39055.0,0.00035542]
[1646668503367,0.2497,39066.0,39052.0,0.064007]
[1646668503571,0.2497,39066.0,39055.0,0.128014]
[1646668503572,0.2369,39066.0,39055.0,0.128014]
[1646668503770,0.2369,39066.0,39056.0,0.49413084]
[1646668503972,0.2369,39066.0,39058.0,0.1]
[1646668504421,0.19598714,39063.0,39058.0,0.1]
[1646668504620,0.19045183,39059.0,39055.0,0.128014]
[1646668504822,0.064014,39058.0,39055.0,0.128014]
[1646668505022,0.49762249,39067.0,39055.0,0.228014]
[1646668505221,0.14189165,39067.0,39055.0,0.228014]
[1646668505420,0.128009,39067.0,39057.0,0.1]
[1646668505621,0.128009,39067.0,39060.0,0.064005]
[1646668505820,0.064,39066.0,39060.0,0.064005]
[1646668506024,0.18777492,39062.0,39060.0,0.064005]
[1646668506221,0.65,39061.0,39052.0,0.02206093]
[1646668506421,0.65,39061.0,39052.0,0.12206093]
[1646668506627,0.65,39061.0,39054.0,0.064009]
[1646668507019,0.714008,39061.0,39054.0,0.064009]
[1646668507222,0.16312979,39057.0,39054.0,0.064009]
[1646668508280,0.22714879,39057.0,39054.0,0.06436163]
[1646668508481,0.19488816,39056.0,39054.0,0.00035263]
[1646668509379,0.19488816,39056.0,39049.0,0.1]
[1646668509580,0.33939486,39055.0,39053.0,0.00035263]
[1646668510582,0.33939486,39055.0,39047.0,0.00141073]
[1646668510583,0.17257345,39054.0,39045.0,0.0128]
[1646668510781,0.17257345,39054.0,39046.0,0.00141076]
[1646668510782,0.20635558,39051.0,39046.0,0.00141076]
[1646668510983,0.17600697,39047.0,39046.0,0.00141076]
[1646668511820,0.064033,39049.0,39045.0,0.0128]
[1646668512817,0.16017477,39048.0,39045.0,0.0128]
[1646668514617,0.16017477,39048.0,39044.0,0.05]
[1646668515665,0.16017477,39048.0,39044.0,0.05037461]
[1646668516466,0.16017477,39048.0,39044.0,0.05]
[1646668516665,0.16017477,39048.0,39044.0,0.05037461]
[1646668517669,0.16017477,39048.0,39044.0,0.05]
[1646668517868,0.16017477,39048.0,39044.0,0.05037461]
[1646668518068,0.19189165,39047.0,39044.0,0.05037461]
[1646668518869,0.05,39047.0,39044.0,0.05]
[1646668519070,0.16017477,39048.0,39044.0,0.05037461]
[1646668519316,0.16975839,39045.0,39044.0,0.05037461]
[1646668519516,0.064043,39046.0,39044.0,0.05037461]
[1646668520219,0.064043,39046.0,39044.0,0.05]
[1646668521921,0.28209904,39046.0,39044.0,0.05]
[1646668522120,0.064043,39046.0,39044.0,0.05]
[1646668525678,0.064043,39046.0,39045.0,0.33939486]
[1646668525879,0.564012,39056.0,39045.0,1.05586486]
[1646668526077,0.00031776,39064.0,39046.0,0.02567]
[1646668526276,0.37739165,39065.0,39053.0,0.064009]
[1646668526475,0.37739165,39065.0,39054.0,0.0512]
[1646668526476,0.20091716,39060.0,39054.0,0.0512]
[1646668527116,0.064011,39057.0,39054.0,0.0512]
[1646668527521,0.064011,39057.0,39055.0,0.00035098]
[1646668527716,0.064011,39057.0,39056.0,0.0512]
[1646668529623,0.064005,39061.0,39058.0,0.064006]
[1646668529922,0.064005,39061.0,39059.0,0.0512]
[1646668533681,0.21250603,39060.0,39059.0,0.0512]
[1646668534720,0.21250603,39060.0,39059.0,0.115213]
[1646668534916,0.114005,39061.0,39060.0,9.36e-05]
[1646668535920,0.27825757,39061.0,39060.0,9.36e-05]
[1646668536520,0.27825757,39061.0,39059.0,0.064013]
[1646668536718,0.114005,39061.0,39059.0,0.064013]
[1646668538160,0.17174244,39063.0,39059.0,0.064013]
[1646668538360,0.22174244,39063.0,39059.0,0.064013]
[1646668538564,0.00031878,39062.0,39059.0,0.064013]
[1646668539362,0.22174244,39063.0,39059.0,0.064013]
[1646668539561,0.00031878,39062.0,39059.0,0.064013]
[1646668540568,0.34976344,39063.0,39059.0,0.064013]
[1646668540965,0.00031878,39062.0,39059.0,0.064013]
[1646668541165,0.00031878,39062.0,39056.0,0.17473501]
[1646668541466,0.064021,39059.0,39056.0,0.17473501]
[1646668541667,0.064021,39059.0,39056.0,0.0512]
[1646668542930,0.064021,39059.0,39056.0,0.11522]
[1646668544335,0.14189165,39057.0,39055.0,0.00035199]
[1646668544532,0.05,39056.0,39055.0,0.00035199]
[1646668545130,0.14189165,39057.0,39055.0,0.00035199]
[1646668545332,0.18233083,39056.0,39048.0,0.33939486]
[1646668545563,0.15490597,39054.0,39047.0,0.128055]
[1646668545771,0.15490597,39054.0,39050.0,0.064029]
[1646668545964,0.15417128,39054.0,39050.0,0.064029]
[1646668546767,0.15417128,39054.0,39050.0,0.06438089]
[1646668547469,0.15417128,39054.0,39050.0,0.00035189]
[1646668547669,0.20593465,39052.0,39050.0,0.00035189]
[1646668547866,0.20593465,39052.0,39045.0,0.002]
[1646668547867,0.14189165,39052.0,39045.0,0.002]
[1646668548065,0.14189165,39052.0,39050.0,0.00035189]
[1646668548470,0.05,39051.0,39050.0,0.00035189]
[1646668549067,0.20999893,39049.0,39044.0,0.05]
[1646668549321,0.33807193,39049.0,39044.0,0.05]
[1646668549624,0.20999893,39049.0,39044.0,0.05]
[1646668550015,0.256157,39050.0,39044.0,0.05]
[1646668550417,0.064038,39047.0,39045.0,0.00035223]
[1646668550616,0.256157,39050.0,39045.0,0.00035223]
[1646668550617,0.064036,39048.0,39045.0,0.00035223]
[1646668551215,0.27255052,39048.0,39045.0,0.00035223]
[1646668551917,0.33658552,39048.0,39045.0,0.00035223]
[1646668552517,0.33658552,39048.0,39044.0,0.05]
[1646668552718,0.33658552,39048.0,39045.0,0.00035217]
[1646668553762,0.33658552,39048.0,39044.0,0.05]
[1646668553763,0.53126561,39048.0,39044.0,0.05]
[1646668553962,0.53126561,39048.0,39045.0,0.00035217]
[1646668554962,0.53126561,39048.0,39044.0,0.05]
[1646668555163,0.53126561,39048.0,39045.0,0.00035217]
[1646668556165,0.53126561,39048.0,39044.0,0.05]
[1646668556363,0.53126561,39048.0,39045.0,0.00035218]
[1646668557010,0.33658552,39048.0,39045.0,0.00035218]
[1646668557411,0.33658552,39048.0,39044.0,0.05]
[1646668557611,0.33658552,39048.0,39045.0,0.00035218]
[1646668558212,0.17291215,39047.0,39045.0,0.00035218]
[1646668558616,0.17291215,39047.0,39044.0,0.05]
[1646668558812,0.17291215,39047.0,39044.0,0.05035218]
[1646668559214,0.064036,39048.0,39044.0,0.05035218]
[1646668559416,0.064024,39052.0,39045.0,0.33939486]
[1646668559615,1.2106,39061.0,39046.0,0.17924306]
[1646668559815,0.8116,39059.0,39047.0,0.33939486]
[1646668560119,0.16231677,39058.0,39048.0,0.1512]
[1646668560313,0.16231677,39058.0,39051.0,0.064023]
[1646668560575,0.16231677,39058.0,39051.0,0.115223]
[1646668560769,0.7482,39061.0,39051.0,0.165223]
[1646668560975,0.7482,39061.0,39052.0,0.33939486]
[1646668561171,0.85669165,39068.0,39053.0,0.05155212]
[1646668561371,0.00031873,39062.0,39054.0,0.33939486]
[1646668561570,0.00031873,39062.0,39055.0,0.0512]
[1646668561772,0.00031873,39062.0,39057.0,0.064013]
[1646668561971,0.00031873,39062.0,39058.0,0.0512]
[1646668562170,0.21755545,39064.0,39058.0,0.0512]
[1646668562370,0.064012,39061.0,39058.0,0.0512]
[1646668563969,0.064012,39061.0,39058.0,0.17922137]
[1646668564417,0.21915263,39060.0,39058.0,0.17922137]
[1646668564614,0.34718763,39060.0,39058.0,0.17922137]
[1646668565412,0.34718763,39060.0,39058.0,0.0512]
[1646668566613,0.34718763,39060.0,39055.0,0.00035092]
[1646668566812,0.34718763,39060.0,39056.0,0.0640246]
[1646668567013,0.41121263,39060.0,39056.0,0.0640246]
[1646668567313,0.17469055,39058.0,39056.0,0.0640246]
[1646668567515,0.22469055,39058.0,39055.0,0.05035095]